Cogmind - Beta 14 @@@ ROGUE MODE // 2024.12.08 @ 01:51:00 Player: ForgettableHero Result: Destroyed by L-31 Rogue with Katana Performance ------------- Evolutions (1) 500 Regions Visited (3) 600 Robots Destroyed (36) 180 Value Destroyed (1037) 1037 Prototype IDs (3) 60 Alien Tech Used (0) 0 Bonus (45) 45 TOTAL SCORE: 2422 Bonus ------- High Alert Combat Kills 45 Cogmind --------- Core Integrity 0/400 Matter 274/300 Energy 125/125 System Corruption 0% Temperature Cool (6) Movement Walking (120) Location -9/Mines Parts ------- > --- POWER (1) -------- Light Ion Engine > --- PROPULSION (2) --- Aluminum Leg > --- UTILITY (4) ------ Heat Sink Machine Analyzer Targeting Computer > --- WEAPON (2) ------- Rocket Launcher Katana > --- INVENTORY (5) ---- Ion Engine Aluminum Leg Small Storage Unit EMP Blaster Mining Claw Peak State ------------ > --- POWER ------------ Light Ion Engine > --- PROPULSION ------- Aluminum Leg Improved Aluminum Leg > --- UTILITY ---------- Heat Sink Small Storage Unit Machine Analyzer Targeting Computer > --- WEAPON ----------- Mining Claw Katana > --- INVENTORY -------- Ion Engine Aluminum Leg EMP Blaster [Rating: 14] Favorites ----------- Power Ion Engine Engine Ion Engine Propulsion Aluminum Leg Leg Aluminum Leg Flight Unit Flight Unit Utility Machine Analyzer Device Improved Heat Sink Storage Small Storage Unit Processor Machine Analyzer Weapon Small Laser Energy Gun Small Laser Ballistic Gun Light Assault Rifle Launcher Grenade Launcher Slashing Weapon Mining Claw Build | -11 -10 -9 -9 ------- Run | Yrd Mat Mat Min Slots Evolved 2 | . . 2 . Power . | . . . . Propulsion . | . . . . Utility 2 | . . 2 . Weapon . | . . . . Parts Attached 33 | 6 6 10 11 Power 6 | 1 1 3 1 Engine 6 | 1 1 3 1 Core . | . . . . Reactor . | . . . . Propulsion 9 | 2 2 2 3 Treads . | . . . . Leg 8 | 2 2 2 2 Wheel . | . . . . Hover . | . . . . Flight 1 | . . . 1 Utility 7 | 1 1 3 2 Device 3 | . . 2 1 Storage 2 | 1 . . 1 Processor 2 | . 1 1 . Hackware . | . . . . Protection . | . . . . Artifact . | . . . . Weapon 11 | 2 2 2 5 Energy Gun 3 | 1 . 1 1 Energy Cannon . | . . . . Ballistic Gun 2 | 1 . 1 . Ballistic Cannon . | . . . . Launcher 3 | . 2 . 1 Special Weapon . | . . . . Impact Weapon . | . . . . Slashing Weapon 3 | . . . 3 Piercing Weapon . | . . . . Special Melee Weapon . | . . . . Unidentified Prototypes . | . . . . Parts Lost 13 | . 1 6 6 Power 2 | . . 2 . Propulsion 5 | . . 2 3 Utility 1 | . . 1 . Weapon 5 | . 1 1 3 Highest Loss Streak 5 | . 1 3 5 To Critical Strikes . | . . . . Average Slot Usage (%) 95 | . 97 99 83 Engine 11 | . 13 11 11 Leg 23 | . 28 22 18 Device 5 | . . 10 8 Storage 10 | . 14 11 2 Processor 17 | . 12 22 22 Energy Gun 9 | . 14 11 . Ballistic Gun 2 | . . 5 1 Launcher 7 | . 12 5 . Slashing Weapon 4 | . . . 18 Peak Build Rating 14 | 6 10 13 14 Average Rating 10 | 4 9 12 11 On Entrance 6 | . 6 10 11 Naked Turns . | . . . . Heaviest Build 15 | 12 14 15 13 Greatest Support 23 | 20 20 20 23 Greatest Overweight (x) 3 | 3 . . 3 Average Overweight (x) . | . . . . Largest Inventory Capacity 8 | 8 8 8 8 Average Capacity 7 | 7 8 8 5 Most Carried 8 | 6 8 8 5 Average Carried 5 | 2 7 5 3 Final Capacity 8 | 8 8 8 5 Final Carried 8 | 6 8 4 5 Class Distribution -------------------- 76% | Mutant 23% | Scavenger-Mutant Dominant Class ---------------- Mutant | -10/Materials Mutant | -9/Materials Scavenger-Mutant | -9/Mines Resources | -11 -10 -9 -9 ----------- Run | Yrd Mat Mat Min Matter Collected 905 | 211 278 280 136 Remotely . | . . . . Salvage Created 832 | . 253 411 168 Parts 68 | . 28 29 11 Haulers Intercepted . | . . . . Recyclers Shooed 2 | . . 2 . Parts Field Recycled . | . . . . Retrieved Matter . | . . . . Parts Self-Destructed . | . . . . Prevented . | . . . . Kills | -11 -10 -9 -9 ------- Run | Yrd Mat Mat Min Combat Hostiles Destroyed 32 | . 14 14 4 Melee 1 | . . . 1 Guns 11 | . 2 7 2 AOE 20 | . 12 7 1 Classes Destroyed 9 | . 4 4 1 Builder 1 | . . 1 . Mechanic 1 | . 1 . . Operator 1 | . . 1 . Watcher 1 | . 1 . . Swarmer 9 | . 6 3 . Grunt 17 | . 8 6 3 Brawler 1 | . . 1 . Duelist 1 | . . . 1 Sentry 4 | . . 4 . Best Kill Streak 6 | . 6 5 3 Combat Bots Only 5 | . 5 5 3 Max Kills in Single Turn 4 | . 4 2 1 Gunslinging . | . . . . Exploded 2 | . 2 1 1 Melee 1 | . . . 1 Uniques/NPCs Destroyed . | . . . . Combat | -11 -10 -9 -9 -------- Run | Yrd Mat Mat Min Hostile Shots Fired 148 | . 37 57 54 Missed 40 | . 9 17 14 Damage Taken 1671 | . 414 621 636 Core 458 | . 55 114 289 Absorbed by Shields . | . . . . Regen/Repaired (Parts) 98 | . 98 . . Core Remaining (%) 89 | 100 78 . . Volleys Fired 89 | . 27 47 15 Largest 2 | . 2 2 2 Hottest 70 | . 70 70 60 Shots Fired 136 | . 42 75 19 Gun 94 | . 21 55 18 Cannon . | . . . . Launcher 42 | . 21 20 1 Special . | . . . . Kinetic 45 | . 4 27 14 Thermal 49 | . 17 28 4 Explosive 42 | . 21 20 1 Electromagnetic . | . . . . Robot Hit Streak 19 | . 4 19 8 Robot Miss Streak 3 | . 2 3 2 Penetration Max . | . . . . Secondary Targets 2 | . . 2 . Max Gunslinging Chain 1 | . . 1 . Shots Hit Robots 96 | . 23 57 16 Core Hits 77 | . 27 40 10 Critical Kills . | . . . . Critical Parts Destroyed . | . . . . Critical Strikes . | . . . . Melee Attacks 3 | . . . 3 Impact . | . . . . Slashing 3 | . . . 3 Piercing . | . . . . Sneak Attacks . | . . . . Combat Hostiles . | . . . . Follow-up Attacks . | . . . . Damage Inflicted 2577 | . 1245 1089 243 Guns 617 | . 107 398 112 Cannons . | . . . . Explosions 1916 | . 1138 691 87 Melee 44 | . . . 44 Ramming . | . . . . Kinetic 225 | . 8 137 80 Thermal 392 | . 99 261 32 Explosive 1916 | . 1138 691 87 Electromagnetic . | . . . . Impact . | . . . . Slashing 44 | . . . 44 Piercing . | . . . . Highest Corruption . | . . . . Average Corruption . | . . . . Corruption Purged . | . . . . Corruption Blocked . | . . . . Overload Shots . | . . . . Overflow Damage 3 | . 3 . . Projectiles . | . . . . Explosions 3 | . 3 . . Melee . | . . . . Knockbacks . | . . . . Impact . | . . . . Kinetic . | . . . . Secondary . | . . . . Self-Inflicted Damage 177 | . 123 19 35 Shots 13 | . 10 2 1 Rammed . | . . . . Targets Rammed . | . . . . Kicked . | . . . . Crushed . | . . . . Highest Temperature 69 | . 69 28 20 Average Temperature 19 | . 24 7 6 Received Heat Transfer 513 | . 108 207 198 Siege Activations . | . . . . Robots Corrupted . | . . . . Combat Hostiles . | . . . . Parts Fried . | . . . . Impact Corruptions . | . . . . Robots Melted . | . . . . Combat Hostiles . | . . . . Parts Melted . | . . . . Heat Transferred 900 | . 225 600 75 Parts Sabotaged . | . . . . Parts Stolen . | . . . . Parts Stripped . | . . . . Power Chain Reactions . | . . . . Alert | -11 -10 -9 -9 ------- Run | Yrd Mat Mat Min Peak Influence 557 | . 395 557 231 Initial 180 | . . 123 180 Average 248 | . 204 368 197 Maximum Alert Level 2 | . 1 2 1 Low Security (%) 37 | 100 63 14 14 Level 1 44 | . 36 35 85 Level 2 17 | . . 49 . Level 3 . | . . . . Level 4 . | . . . . Level 5 . | . . . . High Security . | . . . . Max Security . | . . . . Squads Dispatched 4 | . 2 2 . Investigation 1 | . 1 . . Extermination . | . . . . Reinforcement 3 | . 1 2 . Assault . | . . . . Garrison . | . . . . Intercept . | . . . . Searches Triggered . | . . . . Construction Impeded 1 | . . 1 . Haulers Reinforced . | . . . . Active Scanning Responses . | . . . . Cargo Convoy Interrupts . | . . . . Stealth | -11 -10 -9 -9 --------- Run | Yrd Mat Mat Min Distress Signals 1 | . 1 . . Communications Jammed . | . . . . Distress Signals . | . . . . Times Spotted 49 | . 22 21 6 Peak Tracking Total 7 | . 6 7 3 Tactical Retreats 1 | . . 1 . Traps | -11 -10 -9 -9 ------- Run | Yrd Mat Mat Min Traps Triggered . | . . . . Indirectly . | . . . . Trap Hack Attempts . | . . . . Triggered . | . . . . Disarmed . | . . . . Reprogrammed . | . . . . Reused . | . . . . Traps Extracted . | . . . . Installed . | . . . . Triggered . | . . . . Machines | -11 -10 -9 -9 ---------- Run | Yrd Mat Mat Min Machines Disabled 3 | . 3 . . Max in Single Turn 1 | . 1 . . Machines Repaired . | . . . . Machines Dismantled . | . . . . Machines Sabotaged . | . . . . Overloaded Fab Kills . | . . . . Hacking | -11 -10 -9 -9 --------- Run | Yrd Mat Mat Min Machines Accessed 10 | . 5 5 . Terminals 8 | . 3 5 . Fabricators . | . . . . Repair Stations 1 | . 1 . . Recycling Units 1 | . 1 . . Scanalyzers . | . . . . Garrison Access . | . . . . Total Hacks 40 | . 24 16 . Successful 22 | . 16 6 . Failed 18 | . 8 10 . Catastrophic 3 | . 3 . . Database Lockouts . | . . . . Manual . | . . . . Terminals 31 | . 15 16 . Fabricators . | . . . . Repair Stations 6 | . 6 . . Recycling Units 3 | . 3 . . Scanalyzers . | . . . . Garrison Access . | . . . . Terminal Hacks 15 | . 9 6 . Record 8 | . 6 2 . Prototype ID Bank 2 | . 1 1 . Emergency Access Points 1 | . . 1 . Locate Traps 2 | . 2 . . Assault Status 1 | . . 1 . Recall Reinforcements 1 | . . 1 . Fabricator Hacks . | . . . . Repair Station Hacks 5 | . 5 . . Scan Component 3 | . 3 . . Repair 2 | . 2 . . Recycling Unit Hacks 2 | . 2 . . Report Inventory 1 | . 1 . . Retrieve Components 1 | . 1 . . Scanalyzer . | . . . . Garrison Access Hacks . | . . . . Unauthorized Hacks . | . . . . Terminals . | . . . . Fabricators . | . . . . Repair Stations . | . . . . Recycling Units . | . . . . Scanalyzers . | . . . . Garrison Access . | . . . . Data Cores Recovered 1 | . . 1 . Used . | . . . . Hacking Detections 9 | . 4 5 . Full Trace Events 2 | . 1 1 . Feedback Events . | . . . . Feedback Blocked . | . . . . Robot Schematics Acquired . | . . . . Robots Built . | . . . . Authchips . | . . . . Time . | . . . . Total Robot Build Rating . | . . . . Part Schematics Acquired . | . . . . Parts Built . | . . . . Authchips . | . . . . Time . | . . . . Total Part Build Rating . | . . . . Parts Repaired 2 | . 2 . . Time 52 | . 52 . . Parts Recycled . | . . . . Recycled Matter . | . . . . Retrieved Matter . | . . . . Retrieved Components 9 | . 9 . . Parts Scanalyzed . | . . . . Part Schematics Acquired . | . . . . Parts Damaged . | . . . . Bothacking | -11 -10 -9 -9 ------------ Run | Yrd Mat Mat Min Used RIF Installer . | . . . . Robots Hacked . | . . . . Non-combat . | . . . . Combat . | . . . . Robot Hacks Applied . | . . . . Relay Couplers Released . | . . . . Fabnet Peak Effective % . | . . . . Robots Rewired . | . . . . Allies Hacked . | . . . . Hacks Repelled . | . . . . Allies | -11 -10 -9 -9 -------- Run | Yrd Mat Mat Min Total Allies . | . . . . Largest Group . | . . . . Highest-Rated Group . | . . . . Highest-Rated Ally . | . . . . Total Orders . | . . . . Ally Attacks . | . . . . Total Damage . | . . . . Kills . | . . . . Allies Corrupted . | . . . . Allies Melted . | . . . . Intel | -11 -10 -9 -9 ------- Run | Yrd Mat Mat Min Robot Analysis Total . | . . . . Derelict Logs Recovered . | . . . . Drone Launches . | . . . . Drone Recoveries . | . . . . Exploration | -11 -10 -9 -9 ------------- Run | Yrd Mat Mat Min Turns Passed 1572 | 83 609 543 337 Spaces Moved 957 | 58 360 326 213 Core 29 | 16 . . 13 Treads . | . . . . Legs 928 | 42 360 326 200 Wheels . | . . . . Hover . | . . . . Flight . | . . . . Fastest Speed 50 | 50 120 120 120 Average Speed 120 | 112 120 120 124 Slowest Speed 200 | 200 120 120 200 Overloaded Moves . | . . . . Propulsion Burnouts . | . . . . Robots Hopped . | . . . . Cave-ins Triggered . | . . . . Exploration Rate (%) 32 | 6 58 23 42 Regions Visited 3 Branch Regions 1 Pre-discovered Areas . | . . . . Known Exits Taken . | . . . . Unknown Exits Taken 3 | 1 1 1 . Scrap Searched 1 | . . . 1 Spaces Dug . | . . . . Terrain Destroyed 206 | . 101 92 13 Melee . | . . . . Projectile . | . . . . AOE 206 | . 101 92 13 Terrain Rammed . | . . . . Walls Destroyed . | . . . . Machines Disabled . | . . . . Actions | -11 -10 -9 -9 --------- Run | Yrd Mat Mat Min Total 1246 | 76 501 408 261 Wait 109 | 1 81 16 11 Move 954 | 57 359 325 213 Hop . | . . . . Pick Up 43 | 12 17 7 7 Fast Attach . | . . . . Attach 24 | 6 3 8 7 Detach 1 | . . . 1 Swap 9 | . 3 2 4 Drop 14 | . 11 3 . Fire 89 | . 27 47 15 Melee 3 | . . . 3 Ram . | . . . . Kick . | . . . . Crush . | . . . . Escape Stasis . | . . . . Rewire . | . . . . Trap . | . . . . Miscellaneous . | . . . . Route ------- -11/Scrapyard -10/Materials (discovered 2 exits: *Mat / [*Sub]) -9/Materials -9/Mines (discovered 2 exits: [*Mat x2]) History --------- Turn | Location | Event 25 | -11/Scrapyard | Discovered new exit (range 16) 84 | -11/Scrapyard | Entered Materials 306 | -10/Materials | Discovered new exit (range 9) 312 | -10/Materials | Build established: Mutant 506 | -10/Materials | Discovered new exit (range 15) 552 | -10/Materials | Repaired Aluminum Leg 602 | -10/Materials | Repaired Ion Engine 693 | -10/Materials | Entered another Materials area 693 | -9/Materials | Evolved 2 slots: Utility x2 1032 | -9/Materials | Lost 3 parts (1p1n1w) 1180 | -9/Materials | Discovered new exit (range 14) 1236 | -9/Materials | Entered Mines 1251 | -9/Mines | Core integrity fell below 50% 1265 | -9/Mines | Core integrity fell below 20% 1311 | -9/Mines | Lost 5 parts (2n3w) 1494 | -9/Mines | Discovered new exit (range 8) 1508 | -9/Mines | Discovered new exit (range 12) 1515 | -9/Mines | Received a Rocket Launcher from a helpful Derelict 1573 | -9/Mines | Destroyed by L-31 Rogue with Katana Last Messages --------------- 01494_ EXIT=FOUND 01509_ A derelict emerges from the shadows. 01510_ 3O-H8L(g): "Some of my friends down here think you need a mining laser when you travel the depths." 01511_ 3O-H8L(g): "Pshh... whatever." 01512_ 3O-H8L(g): "Everyone knows a good old rocket launcher goes a long way." 01513_ 3O-H8L(g): "Need to get rid of a swarm? Done. Need a big hole in the wall? Done." 01514_ 3O-H8L(g): "Need a small hole in the wall? Leave that to the mining laser wimps, I say!" 01515_ 3O-H8L(g): "Would you like a rocket launcher? I know I would if I were you, so I'm going to lend you mine." 01515_ 3O-H8L(g) slips back into the shadows. 01516_ Acquired Rocket Launcher. 01568_ G-34 Mercenary destroyed. 01573_ Imp. Aluminum Leg destroyed. Map ----- +----------------------------------------------------+ | ??????????????????????????????? | | ??????????????????????????????? | | ??????????????????????????????? | | ??????????????????????????????? | | ??????????????????????????????? | | ??????????????????????????????? | | ??????????????????????????????? | | ??????????????????????????????? | | ??????????????????????????????? | | ??????????????????????????????? | | ??????????????????????????????? | | ??????????????????????????????? | | ????????????????#?????????? | | ??????????????? #????????? | | ???????????????? #???????? | | #??????????????? ???????? | | ???????????????? #??????? | | ???????????????? #?????? | | #???????????????? ##???? | | #####??????????? ##??? | | ??# ###?????????? #??? | | ???# ##????????? #??? | | ????# #????????## ##?? | | ????## ########## #?? | | ?????## #?? | | ?????## ######### @ #?? | | ????## ##??????# l #?? | | ##### ###???????# #?? | | ####?????????## #?? | | ###????????????? [%g ?? | | #### ##??????????????? #? | | ???####??????????????? #? | | ??????????????????????"" #? | | ?????????????????????""" #? | | ?????????????????????""" #? | | ??????????????????????? #? | | ??????????????????????? #? | | ???????????????????????#######? | | ??????????????????????????????? | | ??????????????????????????????? | | | | | | | | | | | | | | | | | | | | | +----------------------------------------------------+ Best States ------------- Heat Dissipation 42 Energy Generation 10 Energy Capacity 250 Matter Stores 300 Matter Capacity 300 Sight Range 16 Terrain Scan Density 10 Evasion (%) 55 Targeting Accuracy 5 Item Schematics ----------------- None Robot Schematics ------------------ None Fabricated ------------ Nothing Alien Tech Used ----------------- None Achievements -------------- None Challenges ------------ None Game ------ Seed DroneCargoBotcube Manual? 0 Play Time 00:24:04 Cumulative 57.0 hours Start 2024.12.08 @ 01:27:40 End 2024.12.08 @ 01:51:00 Sessions 1 Manual Loads 0 Difficulty Rogue Special Mode None Game No. 11 Rogue 10 Adventurer 0 Explorer 1 Win Type - Total 1 Types 1/0/0/0/0/0/0/0/0 Lore% 19 Gallery% 29 Achievement% 37 Wizard Run 0 Options --------- Layout 1 ASCII 0 Keyboard 0 Movement Numpad Keybinds 0 Fullscreen 1 Font 24/Smallcaps Map View 50x35 Zoom Use 0% Tactical HUD 1 Map Filters NONE Filters NONE Steam 1 RUN: de1e7135-17d7-4608-bcb2-cbe04e628815